fUST/lending_fUST_20260115
["ID","MTS","AMOUNT","RATE_DAILY","PERIOD"]
[401934411,1768410645084,-800.0,0.00025017,7]
[401934412,1768410645094,-1296.0967193,0.00025086,7]
[401934413,1768410645104,-500.0,0.00025097,7]
[401934414,1768410645114,-800.0,0.000251,7]
[401934415,1768410645124,-30607.73,0.000252,2]
[401934416,1768410645134,-250.0,0.00025205,2]
[401934417,1768410645143,-1186.74681137,0.00025205,2]
[401934418,1768410645153,-5460.0,0.00025255,2]
[401934419,1768410645163,-198.77,0.000253,7]
[401934420,1768410645172,-253.56,0.000253,7]
[401934421,1768410645182,-1593.0,0.00025306,7]
[401934422,1768410645192,-5460.0,0.00025333,2]
[401934423,1768410645201,-191.0,0.0002537,14]
[401934424,1768410645211,-1593.0,0.00025431,2]
[401934425,1768410645220,-856.896701,0.00025479,7]
[401934426,1768410645230,-856.896701,0.00025479,7]
[401934427,1768410645239,-856.896701,0.00025479,7]
[401934428,1768410645250,-856.896701,0.00025479,7]
[401934429,1768410645260,-856.896701,0.00025479,7]
[401934430,1768410645272,-856.896701,0.00025479,7]
[401934431,1768410645281,-856.896701,0.00025479,7]
[401934432,1768410645296,-856.896701,0.00025479,7]
[401934433,1768410645305,-544.47986522,0.00025494,2]
[401934434,1768410645314,-4394.07,0.000255,14]
[401934435,1768410645324,-151.0,0.000255,12]
[401934436,1768410645333,-1593.0,0.0002558,2]
[401934437,1768410645342,-1593.0,0.00025642,7]
[401934438,1768410645351,-1593.0,0.00025666,2]
[401934439,1768410645360,-12705.37423421,0.0002569,2]
[401934440,1768410645370,-167.77,0.000257,7]
[401934441,1768410645379,-5460.0,0.000257,7]
[401934442,1768410645388,-2000.0,0.00025722,7]
[401934443,1768410645398,-350.0,0.00025753,2]
[401934444,1768410645407,-868.1,0.00025793,2]
[401934445,1768410645416,-962.95426501,0.00025825,21]
[401934446,1768410645425,-4574.0,0.00025911,2]
[401934447,1768410645434,-1593.0,0.00025939,2]
[401934448,1768410645443,-1593.0,0.00025963,2]
[401934449,1768410645453,-1795.08,0.00026,7]
[401934450,1768410645462,-4109.9,0.00026027,2]
[401934451,1768410645472,-1593.0,0.00026083,2]
[401934453,1768410645482,-1593.0,0.00026152,2]
[401934454,1768410645491,-1593.0,0.00026159,2]
[401934455,1768410645501,-1593.0,0.00026182,7]
[401934456,1768410645511,-5000.0,0.00026213,2]
[401934457,1768410645521,-1000.0,0.00026233,30]
[401934458,1768410645531,-1000.0,0.00026233,30]
[401934459,1768410645541,-579.0,0.00026233,30]
[401934460,1768410645552,-1593.0,0.00026293,2]
[401934461,1768410645561,-450.0,0.00026301,2]
[401934462,1768410645571,-800.0,0.00026347,2]
[401934463,1768410645580,-1593.0,0.00026376,2]
[401934464,1768410645590,-151.0,0.000264,11]
[401934465,1768410645599,-1593.0,0.00026453,2]
[401934466,1768410645609,-5460.0,0.00026462,2]
[401934467,1768410645618,-192.0,0.00026466,14]
[401934468,1768410645628,-2000.0,0.00026474,7]
[401934469,1768410645638,-30607.73,0.000265,2]
[401934470,1768410645647,-198.77,0.000266,7]
[401934471,1768410645656,-1081.35989444,0.00026687,2]
[401934472,1768410645665,-962.95426501,0.00026696,22]
[401934473,1768410645674,-5461.0,0.00026731,2]
[401934474,1768410645683,-1593.0,0.00026749,2]
[401934475,1768410645692,-4461.21019834,0.00026751,2]
[401934476,1768410645702,-4394.07,0.000268,14]
[401934477,1768410645711,-253.56,0.000268,7]
[401934478,1768410645720,-550.0,0.00026849,2]
[401934479,1768410645730,-12705.37423421,0.00026983,2]
[401934480,1768410645739,-500.0,0.00027,2]
[401934481,1768410645749,-5461.0,0.00027013,7]
[401934482,1768410645758,-200.858,0.00027095,2]
[401934483,1768410645768,-221.878,0.00027095,2]
[401934484,1768410645777,-244.039,0.00027095,2]
[401934485,1768410645786,-232.431,0.00027095,2]
[401934487,1768410645797,-275.706,0.00027095,2]
[401934489,1768410645807,-2147.0,0.00027095,2]
[401934490,1768410645816,-629.0,0.00027095,2]
[401934491,1768410645825,-1367.0,0.00027095,2]
[401934492,1768410645835,-417.0,0.00027095,2]
[401934493,1768410645844,-417.0,0.00027095,2]
[401934494,1768410645854,-715.0,0.00027095,2]
[401934495,1768410645863,-197.967,0.00027095,2]
[401934496,1768410645873,-160.0,0.00027109,3]
[401934497,1768410645883,-868.1,0.00027133,5]
[401934498,1768410645893,-2000.0,0.00027225,7]
[401934499,1768410645904,-157.01821301,0.00027347,5]
[401934500,1768410645913,-3000.0,0.00027396,14]
[401934501,1768410645923,-650.0,0.00027397,5]
[401934502,1768410645932,-151.0,0.00027397,7]
[401934503,1768410645942,-300.0,0.00027397,2]
[401934504,1768410645952,-300.0,0.00027397,2]
[401934505,1768410645961,-300.0,0.00027397,2]
[401934506,1768410645970,-300.0,0.00027397,2]
[401934507,1768410645979,-300.0,0.00027397,2]
[401934509,1768410645989,-300.0,0.00027397,2]
[401934510,1768410645998,-300.0,0.00027397,2]
[401934512,1768410646008,-300.0,0.00027397,2]
[401934513,1768410646018,-300.0,0.00027397,2]
[401934514,1768410646028,-156.87039,0.00027397,7]
[401934515,1768410646038,-500.0,0.00027397,5]
[401934516,1768410646047,-1795.08,0.000274,7]
[401934517,1768410646057,-270.15084993,0.00027425,2]
[401934518,1768410646067,-159.0,0.00027489,120]
[401934519,1768410646078,-159.0,0.00027551,120]
[401934520,1768410646088,-232.0,0.00027562,25]
[401934522,1768410646098,-962.95426501,0.00027567,24]
[401934524,1768410646109,-5000.0,0.00027657,2]
[401934526,1768410646119,-159.0,0.00027659,120]
[401934529,1768410646128,-4109.9,0.00027671,4]
[401934531,1768410646137,-819.01,0.000277,3]
[401934533,1768410646147,-163.33303318,0.00027886,7]
[401934535,1768410646156,-1000.0,0.00027945,5]
[401934536,1768410646166,-750.0,0.00027945,5]
[401934537,1768410646175,-250.0,0.00027945,5]
[401934538,1768410646185,-2000.0,0.00027977,7]
[401934539,1768410646194,-30607.73,0.000282,2]
[401934540,1768410646204,-3000.0,0.00028218,14]
[401934541,1768410646214,-151.0,0.00028258,2]
[401934542,1768410646223,-250.0,0.00028258,2]
[401934543,1768410646233,-500.0,0.00028258,2]
[401934544,1768410646244,-250.0,0.00028258,2]
[401934545,1768410646257,-250.0,0.00028258,2]
[401934546,1768410646267,-500.0,0.00028258,2]
[401934547,1768410646278,-250.0,0.00028258,2]
[401934548,1768410646287,-250.0,0.00028258,2]
[401934549,1768410646298,-500.0,0.00028258,2]
[401934550,1768410646308,-250.0,0.00028258,2]
[401934551,1768410646317,-250.0,0.00028258,2]
[401934552,1768410646328,-500.0,0.00028258,2]
[401934553,1768410646338,-250.0,0.00028258,2]
[401934554,1768410646348,-250.0,0.00028258,2]
[401934555,1768410646357,-500.0,0.00028258,2]
[401934556,1768410646367,-250.0,0.00028258,2]
[401934557,1768410646376,-271.32439801,0.00028258,2]
[401934558,1768410646385,-500.0,0.00028258,2]
[401934559,1768410646395,-250.0,0.00028258,2]
[401934560,1768410646405,-283.61044671,0.00028258,2]
[401934561,1768410646414,-500.0,0.00028258,2]
[401934562,1768410646424,-250.0,0.00028258,2]
[401934563,1768410646434,-250.0,0.00028258,2]
[401934564,1768410646443,-500.0,0.00028258,2]
[401934565,1768410646453,-250.0,0.00028258,2]
[401934566,1768410646463,-250.0,0.00028258,2]
[401934567,1768410646472,-500.0,0.00028258,2]
[401934568,1768410646481,-250.0,0.00028258,2]
[401934569,1768410646491,-255.9181721,0.00028258,2]
[401934570,1768410646500,-151.0,0.00028258,2]
[401934571,1768410646509,-500.0,0.00028258,2]
[401934572,1768410646519,-250.0,0.00028258,2]
[401934573,1768410646528,-151.0,0.00028258,2]
[401934574,1768410646538,-500.0,0.00028258,2]
[401934575,1768410646547,-250.0,0.00028258,2]
[401934576,1768410646557,-151.0,0.00028258,2]
[401934577,1768410646566,-500.0,0.00028258,2]
[401934578,1768410646576,-250.0,0.00028258,2]
[401934579,1768410646586,-151.0,0.00028258,2]
[401934580,1768410646596,-500.0,0.00028258,2]
[401934581,1768410646606,-250.0,0.00028258,2]
[401934582,1768410646616,-151.0,0.00028258,2]
[401934583,1768410646625,-168.3888056,0.00028258,2]
[401934584,1768410646634,-500.0,0.00028258,2]
[401934585,1768410646644,-250.0,0.00028258,2]
[401934586,1768410646654,-151.0,0.00028258,2]
[401934587,1768410646663,-174.61919141,0.00028258,2]
[401934588,1768410646672,-250.0,0.00028258,2]
[401934589,1768410646682,-500.0,0.00028258,2]
[401934590,1768410646691,-151.0,0.00028258,2]
[401934591,1768410646700,-151.0,0.00028258,2]
[401934592,1768410646710,-181.08010149,0.00028258,2]
[401934593,1768410646720,-500.0,0.00028258,2]
[401934594,1768410646731,-2230.315306,0.00028258,2]
[401934595,1768410646740,-151.0,0.00028258,2]
[401934596,1768410646750,-151.0,0.00028258,2]
[401934597,1768410646759,-187.78006525,0.00028258,2]
[401934598,1768410646768,-500.0,0.00028258,2]
[401934599,1768410646778,-151.0,0.00028258,2]
[401934600,1768410646787,-247.39667273,0.00028258,2]
[401934601,1768410646796,-194.72792766,0.00028258,2]
[401934602,1768410646805,-151.0,0.00028258,2]
[401934603,1768410646815,-201.93286099,0.00028258,2]
[401934604,1768410646824,-151.0,0.00028258,2]
[401934605,1768410646833,-209.40437684,0.00028258,2]
[401934606,1768410646842,-151.0,0.00028258,2]
[401934607,1768410646852,-217.15233878,0.00028258,2]
[401934608,1768410646861,-151.0,0.00028258,2]
[401934609,1768410646870,-151.0,0.00028258,2]
[401934610,1768410646879,-225.18697532,0.00028258,2]
[401934611,1768410646889,-151.0,0.00028258,2]
[401934612,1768410646898,-151.0,0.00028258,2]
[401934613,1768410646907,-233.51889341,0.00028258,2]
[401934614,1768410646916,-151.0,0.00028258,2]
[401934615,1768410646925,-151.0,0.00028258,2]
[401934616,1768410646935,-242.15909246,0.00028258,2]
[401934617,1768410646944,-151.0,0.00028258,2]
[401934618,1768410646953,-250.0,0.00028258,2]
[401934619,1768410646963,-151.0,0.00028258,2]
[401934620,1768410646973,-151.0,0.00028258,2]
[401934621,1768410646982,-251.11897888,0.00028258,2]
[401934622,1768410646991,-250.0,0.00028258,2]
[401934623,1768410647002,-151.0,0.00028258,2]
[401934624,1768410647013,-260.4103811,0.00028258,2]
[401934625,1768410647023,-151.0,0.00028258,2]
[401934626,1768410647033,-294.03317915,0.00028258,2]
[401934627,1768410647043,-151.0,0.00028258,2]
[401934628,1768410647054,-151.0,0.00028258,2]
[401934629,1768410647064,-270.0455652,0.00028258,2]
[401934630,1768410647074,-151.0,0.00028258,2]
[401934631,1768410647083,-151.0,0.00028258,2]
[401934632,1768410647092,-280.03725112,0.00028258,2]
[401934633,1768410647102,-245.0,0.00028258,2]
[401934634,1768410647111,-151.0,0.00028258,2]
[401934635,1768410647121,-290.39862941,0.00028258,2]
[401934636,1768410647130,-250.0,0.00028258,2]
[401934637,1768410647140,-301.1433787,0.00028258,2]
[401934638,1768410647149,-163.79209166,0.00028258,2]
[401934639,1768410647158,-250.0,0.00028258,2]
[401934640,1768410647168,-250.0,0.00028258,2]
[401934641,1768410647177,-250.0,0.00028258,2]
[401934642,1768410647187,-250.0,0.00028258,2]
[401934643,1768410647196,-461.67526834,0.00028258,2]
[401934644,1768410647205,-250.0,0.00028258,2]
[401934645,1768410647214,-250.0,0.00028258,2]
[401934646,1768410647223,-250.0,0.00028258,2]
[401934647,1768410647233,-273.43146715,0.00028258,2]
[401934648,1768410647242,-12705.37423421,0.00028277,2]
[401934649,1768410647298,-151.0,0.000283,19]
[401934650,1768410647307,-198.77,0.000283,7]
[401934651,1768410647317,-589.69745305,0.00028436,5]
[401934652,1768410647329,-962.95426501,0.00028438,25]
[401934653,1768410647340,-868.1,0.00028473,5]
[401934654,1768410647349,-850.0,0.00028493,5]
[401934655,1768410647358,-849.80836073,0.00028493,5]
[401934656,1768410647368,-350.0,0.00028493,5]
[401934657,1768410647377,-194.2006467,0.00028493,30]
[401934658,1768410647387,-4394.07,0.000285,14]
[401934659,1768410647396,-253.56,0.000285,7]
[401934660,1768410647406,-203.0,0.00028658,30]
[401934661,1768410647415,-1161.13234567,0.00028687,2]
[401934662,1768410647424,-151.0,0.000287,7]
[401934663,1768410647434,-18270.229352,0.00028728,30]
[401934664,1768410647446,-2000.0,0.00028728,7]
[401934665,1768410647456,-248.210033,0.00028767,30]
[401934666,1768410647466,-297.43886801,0.00028806,2]
[401934667,1768410647478,-2312.83697232,0.00028806,2]
[401934668,1768410647487,-478.75725327,0.00028806,2]
[401934669,1768410647498,-1000.0,0.00028856,30]
[401934670,1768410647508,-1000.0,0.00028856,30]
[401934671,1768410647518,-1000.0,0.00028856,30]
[401934672,1768410647529,-728.0,0.00028856,3]
[401934673,1768410647538,-159.0,0.00028863,120]
[401934674,1768410647547,-167.77,0.000289,7]
[401934675,1768410647556,-159.0,0.00028929,120]
[401934676,1768410647565,-2442.75535677,0.00028986,2]
[401934677,1768410647575,-20000.0,0.00029,7]
[401934678,1768410647583,-1041.66666667,0.00029,7]
[401934679,1768410647592,-1795.08,0.00029,7]
[401934680,1768410647601,-1020.0,0.00029,2]
[401934681,1768410647611,-186.0,0.00029016,120]
[401934682,1768410647623,-160.0,0.00029016,120]
[401934683,1768410647633,-3000.0,0.0002904,14]
[401934684,1768410647644,-350.0,0.00029041,5]
[401934685,1768410647654,-450.0,0.00029041,5]
[401934686,1768410647664,-159.0,0.00029042,120]
[401934687,1768410647673,-5000.0,0.00029102,2]
[401934688,1768410647682,-500.0,0.00029136,120]
[401934689,1768410647691,-500.0,0.00029136,120]
[401934690,1768410647701,-500.0,0.00029136,120]
[401934691,1768410647710,-500.0,0.00029136,120]
[401934692,1768410647719,-500.0,0.00029136,120]
[401934693,1768410647728,-500.0,0.00029136,120]
[401934694,1768410647737,-500.0,0.00029136,120]
[401934695,1768410647746,-500.0,0.00029136,120]
[401934696,1768410647755,-500.0,0.00029136,120]
[401934697,1768410647764,-500.0,0.00029136,120]
[401934698,1768410647773,-500.0,0.00029136,120]
[401934699,1768410647782,-500.0,0.00029136,120]
[401934700,1768410647791,-500.0,0.00029136,120]
[401934701,1768410647801,-500.0,0.00029136,120]
[401934702,1768410647810,-500.0,0.00029136,120]
[401934703,1768410647819,-500.0,0.00029136,120]
[401934704,1768410647828,-500.0,0.00029136,120]
[401934705,1768410647837,-500.0,0.00029136,120]
[401934706,1768410647847,-500.0,0.00029136,120]
[401934707,1768410647855,-500.0,0.00029136,120]
[401934708,1768410647864,-500.0,0.00029136,120]
[401934709,1768410647873,-500.0,0.00029136,120]
[401934710,1768410647882,-500.0,0.00029136,120]
[401934711,1768410647891,-500.0,0.00029136,120]
[401934712,1768410647901,-500.0,0.00029136,120]
[401934713,1768410647910,-500.0,0.00029136,120]
[401934714,1768410647919,-500.0,0.00029136,120]
[401934715,1768410647928,-500.0,0.00029136,120]
[401934716,1768410647938,-500.0,0.00029136,120]
[401934717,1768410647947,-500.0,0.00029136,120]
[401934718,1768410647957,-500.0,0.00029136,120]
[401934719,1768410647966,-500.0,0.00029136,120]
[401934720,1768410647976,-500.0,0.00029136,120]
[401934721,1768410647985,-500.0,0.00029136,120]
[401934722,1768410647994,-500.0,0.00029136,120]
[401934723,1768410648004,-500.0,0.00029136,120]
[401934724,1768410648013,-500.0,0.00029136,120]
[401934725,1768410648022,-500.0,0.00029136,120]
[401934726,1768410648031,-500.0,0.00029136,120]
[401934727,1768410648040,-500.0,0.00029136,120]
[401934728,1768410648050,-500.0,0.00029136,120]
[401934729,1768410648059,-500.0,0.00029136,120]
[401934730,1768410648069,-500.0,0.00029136,120]
[401934731,1768410648078,-420.0,0.00029196,120]
[401934732,1768410648087,-252.0,0.00029196,120]
[401934733,1768410648096,-2442.75535677,0.00029216,2]
[401934734,1768410648106,-7240.64501543,0.00029232,2]
[401934735,1768410648115,-962.95426501,0.00029308,26]
[401934736,1768410648125,-728.0,0.00029309,3]
[401934737,1768410648135,-4109.9,0.00029315,6]
[401934738,1768410648145,-2442.75535677,0.00029346,2]
[401934739,1768410648155,-2398.4119403,0.00029354,2]
[401934740,1768410648166,-496.47127164,0.00029354,2]
[401934741,1768410648176,-2000.0,0.0002948,7]
[401934742,1768410648186,-728.0,0.00029496,3]
[401934743,1768410648196,-253.132,0.000295,23]
[401934744,1768410648206,-892.37035368,0.00029558,2]
[401934745,1768410648216,-12705.37423421,0.0002957,2]
[401934746,1768410648226,-550.0,0.00029589,5]
[401934747,1768410648236,-200.0,0.000296,120]
[401934748,1768410648248,-200.0,0.000296,120]
[401934749,1768410648258,-200.0,0.000296,120]
[401934750,1768410648268,-2442.75535677,0.00029714,2]
[401934751,1768410648278,-500.0,0.00029726,2]
[401934752,1768410648289,-500.0,0.00029726,2]
[401934753,1768410648298,-500.0,0.00029726,2]
[401934754,1768410648308,-500.0,0.00029726,2]
[401934755,1768410648318,-210.60455995,0.00029726,2]
[401934756,1768410648328,-500.0,0.00029726,2]
[401934757,1768410648338,-500.0,0.00029726,2]
[401934758,1768410648349,-500.0,0.00029726,2]
[401934759,1768410648358,-500.0,0.00029726,2]
[401934760,1768410648368,-500.0,0.00029726,2]
[401934761,1768410648380,-500.0,0.00029726,2]
[401934762,1768410648390,-1000.0,0.00029726,120]
[401934763,1768410648400,-500.0,0.00029726,60]
[401934764,1768410648410,-500.0,0.00029726,60]
[401934765,1768410648421,-500.0,0.00029726,60]
[401934766,1768410648430,-500.0,0.00029726,60]
[401934767,1768410648440,-849.0,0.00029726,60]
[401934768,1768410648450,-500.0,0.00029726,60]
[401934769,1768410648460,-500.0,0.00029726,60]
[401934770,1768410648470,-500.0,0.00029726,60]
[401934771,1768410648482,-500.0,0.00029726,60]
[401934772,1768410648492,-500.0,0.00029726,60]
[401934773,1768410648503,-171.177356,0.00029726,7]
[401934774,1768410648514,-171.177356,0.00029726,7]
[401934775,1768410648524,-341.283719,0.00029726,7]
[401934776,1768410648536,-171.177356,0.00029726,7]
[401934777,1768410648548,-341.283719,0.00029726,7]
[401934778,1768410648558,-171.177356,0.00029726,7]
[401934779,1768410648567,-341.283719,0.00029726,7]
[401934780,1768410648577,-341.283719,0.00029726,7]
[401934781,1768410648587,-500.0,0.00029726,60]
[401934782,1768410648598,-609.357036,0.00029726,7]
[401934783,1768410648609,-500.0,0.00029726,60]
[401934784,1768410648620,-609.357036,0.00029726,7]
[401934785,1768410648631,-609.357036,0.00029726,7]
[401934786,1768410648643,-609.357036,0.00029726,7]
[401934787,1768410648653,-795.987765,0.00029726,7]
[401934788,1768410648663,-795.987765,0.00029726,7]
[401934789,1768410648673,-151.0,0.00029726,7]
[401934790,1768410648684,-151.0,0.00029726,7]
[401934791,1768410648694,-151.0,0.00029726,7]
[401934792,1768410648703,-795.987765,0.00029726,7]
[401934793,1768410648716,-795.987765,0.00029726,7]
[401934794,1768410648726,-151.0,0.00029726,7]
[401934795,1768410648736,-151.0,0.00029726,7]
[401934796,1768410648746,-151.0,0.00029726,7]
[401934797,1768410648756,-151.0,0.00029726,7]
[401934798,1768410648765,-151.0,0.00029726,2]
[401934799,1768410648775,-151.0,0.00029726,7]
[401934800,1768410648784,-151.0,0.00029726,7]
[401934801,1768410648794,-1570.773702,0.00029726,7]
[401934802,1768410648804,-1570.773702,0.00029726,7]
[401934803,1768410648814,-1570.773702,0.00029726,7]
[401934804,1768410648824,-151.0,0.00029726,7]
[401934805,1768410648834,-1570.773702,0.00029726,7]
[401934806,1768410648844,-151.0,0.00029726,7]
[401934807,1768410648856,-151.0,0.00029726,7]
[401934808,1768410648866,-276.465874,0.00029726,7]
[401934809,1768410648876,-302.604582,0.00029726,7]
[401934810,1768410648886,-302.604582,0.00029726,7]
[401934811,1768410648896,-856.896701,0.00029726,7]
[401934812,1768410648907,-302.604582,0.00029726,7]
[401934813,1768410648917,-856.896701,0.00029726,7]
[401934814,1768410648927,-302.604582,0.00029726,7]
[401934815,1768410648937,-856.896701,0.00029726,7]
[401934816,1768410648947,-856.896701,0.00029726,7]
[401934817,1768410648957,-442.400587,0.00029726,7]
[401934818,1768410648968,-442.400587,0.00029726,7]
[401934819,1768410648978,-442.400587,0.00029726,7]
[401934820,1768410648988,-442.400587,0.00029726,7]
[401934821,1768410648998,-151.0,0.00029726,7]
[401934822,1768410649009,-151.0,0.00029726,7]
[401934823,1768410649019,-151.0,0.00029726,7]
[401934824,1768410649030,-151.0,0.00029726,7]
[401934825,1768410649041,-151.0,0.00029726,7]
[401934826,1768410649053,-500.0,0.00029726,60]
[401934827,1768410649063,-285.163634,0.00029726,7]
[401934828,1768410649074,-500.0,0.00029726,2]
[401934829,1768410649084,-151.0,0.00029726,7]
[401934830,1768410649095,-178.0,0.00029753,36]
[401934831,1768410649105,-677.806969,0.00029757,7]
[401934832,1768410649115,-677.806969,0.00029757,7]
[401934833,1768410649126,-677.806969,0.00029757,7]
[401934834,1768410649135,-677.806969,0.00029757,7]
[401934835,1768410649145,-713.0,0.00029781,3]
[401934836,1768410649155,-30607.73,0.000298,2]
[401934837,1768410649166,-259.047216,0.000298,7]
[401934838,1768410649176,-259.047216,0.000298,7]
[401934839,1768410649186,-259.047216,0.000298,7]
[401934840,1768410649196,-259.047216,0.000298,7]
[401934841,1768410649206,-2213.011208,0.000298,7]
[401934842,1768410649215,-2213.011208,0.000298,7]
[401934843,1768410649225,-2213.011208,0.000298,7]
[401934844,1768410649235,-2213.011208,0.000298,7]
[401934845,1768410649245,-778.0,0.000298,2]
[401934846,1768410649258,-160.0,0.00029805,4]
[401934847,1768410649268,-868.1,0.00029813,7]
[401934848,1768410649278,-728.0,0.00029816,3]
[401934849,1768410649287,-2000.0,0.00029833,10]
[401934850,1768410649299,-2000.0,0.00029842,10]
[401934851,1768410649309,-2000.0,0.0002985,10]
[401934852,1768410649320,-2000.0,0.00029859,10]
[401934853,1768410649331,-3000.0,0.00029862,14]
[401934854,1768410649341,-500.0,0.00029863,2]
[401934855,1768410649351,-500.0,0.00029863,2]
[401934856,1768410649364,-500.0,0.00029863,2]
[401934857,1768410649376,-500.0,0.00029863,2]
[401934858,1768410649389,-500.0,0.00029863,2]
[401934859,1768410649401,-500.0,0.00029863,2]
[401934860,1768410649414,-500.0,0.00029863,2]
[401934861,1768410649425,-500.0,0.00029863,2]
[401934862,1768410649436,-500.0,0.00029863,2]
[401934863,1768410649446,-500.0,0.00029863,2]
[401934864,1768410649458,-283.83301289,0.00029863,2]
[401934865,1768410649469,-1000.0,0.00029863,120]
[401934866,1768410649482,-500.0,0.00029863,60]
[401934867,1768410649494,-500.0,0.00029863,60]
[401934868,1768410649506,-541.14675922,0.00029863,60]
[401934869,1768410649518,-500.0,0.00029863,60]
[401934870,1768410649529,-849.0,0.00029863,60]
[401934871,1768410649540,-500.0,0.00029863,60]
[401934872,1768410649554,-500.0,0.00029863,60]
[401934873,1768410649567,-500.0,0.00029863,60]
[401934874,1768410649578,-500.0,0.00029863,60]
[401934875,1768410649589,-500.0,0.00029863,60]
[401934876,1768410649600,-500.0,0.00029863,60]
[401934877,1768410649611,-500.0,0.00029863,60]
[401934878,1768410649623,-500.0,0.00029863,60]
[401934879,1768410649634,-500.0,0.00029863,2]
[401934880,1768410649646,-151.0,0.00029863,7]
[401934881,1768410649657,-151.0,0.00029863,7]
[401934882,1768410649669,-2000.0,0.00029868,10]
[401934883,1768410649682,-321.83,0.00029869,120]
[401934884,1768410649692,-2000.0,0.00029877,10]
[401934885,1768410649705,-2000.0,0.00029886,10]
[401934886,1768410649715,-2000.0,0.00029894,10]
[401934887,1768410649725,-4394.07,0.000299,14]
[401934888,1768410649736,-198.77,0.000299,7]
[401934889,1768410649747,-2487.15318209,0.00029902,2]
[401934890,1768410649758,-514.84070869,0.00029902,2]
[401934891,1768410649770,-2000.0,0.00029903,10]
[401934892,1768410649782,-2000.0,0.00029912,10]
[401934893,1768410649794,-2000.0,0.00029921,10]
[401934894,1768410649805,-2000.0,0.00029921,10]
[401934895,1768410649816,-2000.0,0.0002993,10]
[401934896,1768410649829,-2000.0,0.0002993,10]
[401934897,1768410649843,-2000.0,0.00029938,10]
[401934898,1768410649855,-2000.0,0.00029938,10]
[401934899,1768410649868,-2000.0,0.00029947,10]
[401934900,1768410649881,-2000.0,0.00029947,10]
[401934901,1768410649893,-728.0,0.00029949,3]
[401934902,1768410649903,-2000.0,0.00029956,10]
[401934903,1768410649912,-2000.0,0.00029956,10]
[401934904,1768410649923,-2000.0,0.00029965,10]
[401934905,1768410649933,-2000.0,0.00029965,10]
[401934906,1768410649945,-2000.0,0.00029974,10]
[401934907,1768410649958,-2000.0,0.00029974,10]
[401934908,1768410649970,-2000.0,0.00029982,10]
[401934909,1768410649981,-2000.0,0.00029982,10]
[401934910,1768410649991,-194.2006467,0.00029987,30]
[401934911,1768410650002,-309.08527903,0.0002999,10]
[401934912,1768410650013,-2000.0,0.00029991,120]
[401934913,1768410650024,-2000.0,0.00029991,120]
[401934914,1768410650036,-2000.0,0.00029991,120]
[401934915,1768410650049,-2000.0,0.00029991,120]
[401934916,1768410650060,-2000.0,0.00029991,120]
[401934917,1768410650071,-2000.0,0.00029991,120]
[401934918,1768410650082,-2000.0,0.00029991,120]
[401934919,1768410650092,-2000.0,0.00029991,120]
[401934920,1768410650104,-2000.0,0.00029991,120]
[401934921,1768410650115,-2000.0,0.00029991,120]
[401934922,1768410650126,-2000.0,0.00029991,120]
[401934923,1768410650137,-2000.0,0.00029991,120]